fUST/lending_fUST_20240223
["ID","MTS","AMOUNT","RATE_DAILY","PERIOD"]
[314882683,1708618238919,-281.28625655,0.00018065,2]
[314882685,1708618238929,-367.56124789,0.00018066,2]
[314882922,1708618244397,-336.34735621,0.00018066,2]
[314882924,1708618244407,-1581.11264379,0.00018066,2]
[314882926,1708618244421,-961.10768265,0.00018066,2]
[314882929,1708618244435,-2282.44943621,0.00018066,2]
[314882931,1708618244445,-539.78522577,0.00018077,2]
[314882933,1708618244458,-4913.25951708,0.00018077,2]
[314882937,1708618244479,-4056.55764876,0.00018077,2]
[314882939,1708618244492,-392.58864034,0.00018077,2]
[314882983,1708618245015,-2693.30789332,0.00018077,2]
[314882986,1708618245028,-507.4092863,0.00018077,2]
[314882988,1708618245041,-892.14078255,0.00018077,2]
[314883412,1708618249136,-435.56602072,0.00018077,2]
[314887755,1708619432324,-155.0418613,0.00016954,2]
[314887756,1708619432343,-703.9086041,0.00016954,2]
[314887757,1708619432355,-280.93001517,0.00016955,2]
[314887790,1708619439236,-0.35624138,0.00016955,2]
[314887791,1708619439246,-4824.66976265,0.00016956,2]
[314887792,1708619439256,-2300.0,0.00016974,2]
[314887793,1708619439266,-261.335817,0.00017069,2]
[314887794,1708619439276,-6628.78376812,0.0001734,2]
[314887795,1708619439289,-998.09763985,0.0001734,2]
[314887796,1708619439332,-1395.819,0.0001734,2]
[314887797,1708619439344,-1031.98,0.0001734,2]
[314887889,1708619441423,-14845.31959203,0.0001734,2]
[314887891,1708619441432,-2250.0,0.000185,2]
[314887894,1708619441442,-803.2488981,0.000189,2]
[314887896,1708619441452,-1500.0,0.00019,2]
[314887898,1708619441461,-531.91129669,0.00019,2]
[314887899,1708619441471,-4152.18190059,0.00019168,2]
[314887901,1708619441480,-362.54,0.00019168,3]
[314887903,1708619441489,-181.27,0.00019168,3]
[314887905,1708619441499,-543.85,0.00019168,3]
[314887907,1708619441508,-428.88796845,0.00019177,2]
[314887909,1708619441517,-500.0,0.00019178,2]
[314887911,1708619441526,-644.14,0.00019178,2]
[314887913,1708619441538,-500.0,0.00019178,2]
[314887915,1708619441547,-151.0,0.00019178,2]
[314887917,1708619441556,-151.0,0.00019178,2]
[314887919,1708619441566,-306.24740876,0.00019178,2]
[314887921,1708619441575,-500.0,0.00019178,2]
[314887923,1708619441585,-500.0,0.00019178,2]
[314887926,1708619441594,-500.0,0.00019178,2]
[314887928,1708619441604,-500.0,0.00019178,2]
[314887930,1708619441613,-500.0,0.00019178,2]
[314887932,1708619441622,-500.0,0.00019178,2]
[314887934,1708619441632,-500.0,0.00019178,2]
[314887936,1708619441641,-500.0,0.00019178,2]
[314887938,1708619441651,-163.54247818,0.00019178,2]
[314887940,1708619441660,-500.0,0.00019178,2]
[314887942,1708619441670,-500.0,0.00019178,2]
[314887944,1708619441679,-500.0,0.00019178,2]
[314887946,1708619441688,-500.0,0.00019178,2]
[314887948,1708619441697,-797.03,0.00019178,2]
[314887950,1708619441707,-854.74,0.00019178,2]
[314887952,1708619441716,-500.0,0.00019178,2]
[314887954,1708619441725,-3582.97,0.00019178,2]
[314887956,1708619441734,-256.59234647,0.00019178,2]
[314887968,1708619441873,-151.020121,0.00019178,2]
[314887969,1708619441883,-500.0,0.00019178,2]
[314887970,1708619441893,-500.0,0.00019178,2]
[314887971,1708619441902,-500.0,0.00019178,2]
[314887972,1708619441911,-500.0,0.00019178,2]
[314887973,1708619441920,-500.0,0.00019178,2]
[314887974,1708619441930,-500.0,0.00019178,2]
[314887975,1708619441940,-1082.479918,0.00019178,2]
[314887976,1708619441950,-1082.479918,0.00019178,2]
[314887977,1708619441959,-188.21430772,0.00019178,2]
[314887978,1708619441972,-250.32546643,0.00019178,2]
[314887979,1708619441987,-643.94014385,0.00019178,2]
[314887980,1708619441999,-1082.479918,0.00019178,2]
[314887981,1708619442008,-500.0,0.00019178,2]
[314887982,1708619442017,-500.0,0.00019178,2]
[314887983,1708619442027,-500.0,0.00019178,2]
[314887984,1708619442037,-500.0,0.00019178,2]
[314887985,1708619442050,-3102.23,0.00019178,2]
[314887986,1708619442059,-500.0,0.00019178,2]
[314887987,1708619442068,-407.50005023,0.00019178,2]
[314887988,1708619442079,-1359.88,0.00019178,2]
[314887989,1708619442088,-500.0,0.00019178,2]
[314887990,1708619442097,-323.5389326,0.00019178,2]
[314887991,1708619442107,-2306.0,0.00019178,2]
[314887992,1708619442118,-500.0,0.00019178,2]
[314887993,1708619442127,-630.3,0.00019178,2]
[314887994,1708619442136,-500.0,0.00019178,2]
[314887995,1708619442145,-500.0,0.00019178,2]
[314887996,1708619442155,-500.0,0.00019178,2]
[314887997,1708619442164,-500.0,0.00019178,2]
[314887998,1708619442173,-2557.26,0.00019178,2]
[314887999,1708619442183,-500.0,0.00019178,2]
[314888000,1708619442193,-500.0,0.00019178,2]
[314888001,1708619442203,-500.0,0.00019178,2]
[314888002,1708619442212,-500.0,0.00019178,2]
[314888003,1708619442221,-500.0,0.00019178,2]
[314888004,1708619442230,-500.0,0.00019178,2]
[314888005,1708619442240,-500.0,0.00019178,2]
[314888006,1708619442250,-500.0,0.00019178,2]
[314888007,1708619442260,-151.0,0.00019178,2]
[314888008,1708619442269,-500.0,0.00019178,2]
[314888009,1708619442279,-500.0,0.00019178,2]
[314888010,1708619442288,-500.0,0.00019178,2]
[314888011,1708619442297,-500.0,0.00019178,2]
[314888012,1708619442306,-500.0,0.00019178,2]
[314888013,1708619442315,-500.0,0.00019178,2]
[314888014,1708619442324,-500.0,0.00019178,2]
[314888015,1708619442334,-750.26,0.00019178,2]
[314888016,1708619442343,-1103.48,0.00019178,2]
[314888017,1708619442352,-500.0,0.00019178,2]
[314888018,1708619442363,-500.0,0.00019178,2]
[314888019,1708619442373,-51.41549896,0.00019178,2]
[314888020,1708619442385,-413.90660551,0.00019178,2]
[314888049,1708619865724,204.50901582,0.0002,20]
[314888104,1708620632486,-703.9086041,0.00017265,2]
[314888106,1708620632496,-4824.66976265,0.00017266,2]
[314888108,1708620632507,-1590.42116575,0.00017267,2]
[314888110,1708620632517,-281.28625655,0.00017268,2]
[314888112,1708620632526,-217.779847,0.00017274,2]
[314888114,1708620632535,-300.0,0.00017743,2]
[314888116,1708620632544,-24900.0,0.00017744,2]
[314888117,1708620632554,-2715.19569661,0.00018241,2]
[314888119,1708620632563,-535.4992654,0.000189,2]
[314888122,1708620632572,-12317.20770288,0.00018991,2]
[314888125,1708620632581,-199.46761894,0.00019078,2]
[314888127,1708620632591,-153.0,0.000191,2]
[314888130,1708620632600,-153.0,0.000191,2]
[314888132,1708620632610,-199.46761893,0.00019147,2]
[314888134,1708620632619,-155.19236561,0.00019176,2]
[314888136,1708620632628,-200.39853429,0.00019176,2]
[314888138,1708620632638,-573.14183023,0.00019176,2]
[314888140,1708620632647,-500.0,0.00019178,2]
[314888142,1708620632656,-500.0,0.00019178,2]
[314888144,1708620632665,-500.0,0.00019178,2]
[314888146,1708620632674,-500.0,0.00019178,2]
[314888148,1708620632683,-500.0,0.00019178,2]
[314888150,1708620632692,-500.0,0.00019178,2]
[314888152,1708620632701,-500.0,0.00019178,2]
[314888154,1708620632711,-500.0,0.00019178,2]
[314888156,1708620632720,-500.0,0.00019178,2]
[314888158,1708620632728,-500.0,0.00019178,2]
[314888160,1708620632737,-500.0,0.00019178,2]
[314888162,1708620632747,-500.0,0.00019178,2]
[314888164,1708620632758,-742.42,0.00019178,2]
[314888166,1708620632767,-500.0,0.00019178,2]
[314888168,1708620632776,-500.0,0.00019178,2]
[314888170,1708620632785,-1195.12,0.00019178,2]
[314888171,1708620632795,-500.0,0.00019178,2]
[314888172,1708620632804,-501.04178024,0.00019178,2]
[314888173,1708620632813,-500.0,0.00019178,2]
[314888175,1708620632823,-500.0,0.00019178,2]
[314888176,1708620632832,-500.0,0.00019178,2]
[314888177,1708620632841,-500.0,0.00019178,2]
[314888178,1708620632850,-500.0,0.00019178,2]
[314888179,1708620632859,-360.71997877,0.00019178,2]
[314888180,1708620632869,-715.19553681,0.00019178,2]
[314888181,1708620632882,-841.14446319,0.00019178,2]
[314888182,1708620632890,-151.0,0.00019178,2]
[314888183,1708620632901,-151.0,0.00019178,2]
[314888184,1708620632909,-23.52328267,0.00019178,2]
[314888209,1708620639792,-367.86900015,0.00019168,3]
[314888210,1708620639804,-18.39099985,0.00019168,3]
[314888211,1708620639813,-127.47671733,0.00019178,2]
[314888212,1708620639822,-151.0,0.00019178,2]
[314888213,1708620639831,-151.0,0.00019178,2]
[314888214,1708620639840,-151.0,0.00019178,2]
[314888215,1708620639849,-299.447632,0.00019178,2]
[314888216,1708620639858,-500.0,0.00019178,2]
[314888218,1708620639867,-500.0,0.00019178,2]
[314888220,1708620639876,-500.0,0.00019178,2]
[314888221,1708620639885,-500.0,0.00019178,2]
[314888223,1708620639894,-3077.98,0.00019178,2]
[314888224,1708620639902,-500.0,0.00019178,2]
[314888226,1708620639911,-500.0,0.00019178,2]
[314888228,1708620639920,-1353.79,0.00019178,2]
[314888229,1708620639929,-500.0,0.00019178,2]
[314888231,1708620639938,-500.0,0.00019178,2]
[314888233,1708620639947,-500.0,0.00019178,2]
[314888234,1708620639956,-2492.82,0.00019178,2]
[314888235,1708620639965,-2329.92,0.00019178,2]
[314888236,1708620639975,-500.0,0.00019178,2]
[314888238,1708620639984,-865.983934,0.00019178,2]
[314888239,1708620639993,-865.983934,0.00019178,2]
[314888240,1708620640002,-865.983934,0.00019178,2]
[314888241,1708620640012,-865.983934,0.00019178,2]
[314888242,1708620640021,-865.983934,0.00019178,2]
[314888243,1708620640030,-865.983934,0.00019178,2]
[314888244,1708620640040,-865.983934,0.00019178,2]
[314888245,1708620640049,-865.983934,0.00019178,2]
[314888246,1708620640058,-865.983934,0.00019178,2]
[314888247,1708620640067,-865.983934,0.00019178,2]
[314888248,1708620640076,-500.0,0.00019178,2]
[314888249,1708620640086,-500.0,0.00019178,2]
[314888250,1708620640094,-500.0,0.00019178,2]
[314888251,1708620640103,-500.0,0.00019178,2]
[314888252,1708620640113,-574.41,0.00019178,2]
[314888254,1708620640122,-500.0,0.00019178,2]
[314888256,1708620640131,-500.0,0.00019178,2]
[314888257,1708620640141,-1057.51,0.00019178,2]
[314888258,1708620640150,-500.0,0.00019178,2]
[314888259,1708620640159,-500.0,0.00019178,2]
[314888260,1708620640168,-628.67,0.00019178,2]
[314888261,1708620640178,-500.0,0.00019178,2]
[314888262,1708620640188,-500.0,0.00019178,2]
[314888263,1708620640197,-500.0,0.00019178,2]
[314888264,1708620640206,-500.0,0.00019178,2]
[314888265,1708620640215,-174.74393213,0.00019178,2]
[314888266,1708620640224,-500.0,0.00019178,2]
[314888267,1708620640234,-500.0,0.00019178,2]
[314888268,1708620640243,-500.0,0.00019178,2]
[314888269,1708620640253,-500.0,0.00019178,2]
[314888270,1708620640262,-500.0,0.00019178,2]
[314888271,1708620640271,-500.0,0.00019178,2]
[314888272,1708620640281,-500.0,0.00019178,2]
[314888273,1708620640290,-458.38193183,0.00019178,2]
[314888274,1708620640299,-500.0,0.00019178,2]
[314888275,1708620640309,-500.0,0.00019178,2]
[314888276,1708620640318,-500.0,0.00019178,2]
[314888277,1708620640327,-500.0,0.00019178,2]
[314888278,1708620640336,-500.0,0.00019178,2]
[314888279,1708620640345,-500.0,0.00019178,2]
[314888280,1708620640354,-2.62732474,0.00019178,2]
[314888281,1708620640587,-497.37267526,0.00019178,2]
[314888282,1708620640597,-500.0,0.00019178,2]
[314888283,1708620640606,-75.1925281,0.00019178,2]
[314888296,1708620641714,-424.8074719,0.00019178,2]
[314888297,1708620641723,-500.0,0.00019178,2]
[314888298,1708620641733,-500.0,0.00019178,2]
[314888299,1708620641742,-500.0,0.00019178,2]
[314888300,1708620641751,-500.0,0.00019178,2]
[314888301,1708620641762,-500.0,0.00019178,2]
[314888302,1708620641771,-500.0,0.00019178,2]
[314888303,1708620641781,-500.0,0.00019178,2]
[314888304,1708620641790,-500.0,0.00019178,2]
[314888305,1708620641799,-181.31327599,0.00019178,2]
[314888306,1708620641808,-650.65,0.00019178,2]
[314888307,1708620641817,-500.0,0.00019178,2]
[314888308,1708620641826,-500.0,0.00019178,2]
[314888309,1708620641835,-500.0,0.00019178,2]
[314888310,1708620641845,-2829.62,0.00019178,2]
[314888311,1708620641854,-500.0,0.00019178,2]
[314888312,1708620641863,-500.0,0.00019178,2]
[314888313,1708620641873,-500.0,0.00019178,2]
[314888314,1708620641882,-500.0,0.00019178,2]
[314888315,1708620641891,-142.64525185,0.00019178,2]
[314888316,1708620641903,-146.44679815,0.00019178,2]
[314888317,1708620641912,-289.09205,0.00019178,2]
[314888318,1708620641922,-289.09205,0.00019178,2]
[314888319,1708620641931,-289.09205,0.00019178,2]
[314888320,1708620641940,-289.09205,0.00019178,2]
[314888321,1708620641949,-289.09205,0.00019178,2]
[314888322,1708620641958,-289.09205,0.00019178,2]
[314888323,1708620641967,-289.09205,0.00019178,2]
[314888324,1708620641976,-289.09205,0.00019178,2]
[314888325,1708620641985,-66.13083151,0.00019178,2]
[314888326,1708620641997,-222.96121849,0.00019178,2]
[314888327,1708620642006,-289.09205,0.00019178,2]
[314888328,1708620642016,-289.09205,0.00019178,2]
[314888329,1708620642025,-151.0,0.00019178,2]
[314888330,1708620642034,-151.0,0.00019178,2]
[314888331,1708620642044,-151.0,0.00019178,2]
[314888332,1708620642054,-151.0,0.00019178,2]
[314888333,1708620642064,-500.0,0.00019178,2]
[314888334,1708620642073,-275.177926,0.00019178,2]
[314888335,1708620642082,-500.0,0.00019178,2]
[314888336,1708620642091,-500.0,0.00019178,2]
[314888337,1708620642100,-500.0,0.00019178,2]
[314888338,1708620642109,-500.0,0.00019178,2]
[314888339,1708620642119,-500.0,0.00019178,2]
[314888340,1708620642129,-2279.67,0.00019178,2]
[314888341,1708620642138,-500.0,0.00019178,2]
[314888342,1708620642148,-500.0,0.00019178,2]
[314888343,1708620642158,-984.65,0.00019178,2]
[314888344,1708620642168,-500.0,0.00019178,2]
[314888345,1708620642178,-881.88,0.00019178,2]
[314888346,1708620642187,-500.0,0.00019178,2]
[314888347,1708620642197,-500.0,0.00019178,2]
[314888348,1708620642206,-403.17387071,0.00019178,2]
[314888349,1708620642218,-96.82612929,0.00019178,2]
[314888350,1708620642228,-4965.55,0.00019178,2]
[314888351,1708620642237,-500.0,0.00019178,2]
[314888352,1708620642247,-500.0,0.00019178,2]
[314888353,1708620642257,-8868.14,0.00019178,2]
[314888354,1708620642268,-500.0,0.00019178,2]
[314888355,1708620642278,-8843.07,0.00019178,2]
[314888356,1708620642287,-500.0,0.00019178,2]
[314888357,1708620642296,-282.50836412,0.00019178,2]
[314888463,1708621833766,-15807.50926035,0.00017477,2]
[314888475,1708621837666,-672.68140241,0.00017477,2]
[314888477,1708621837678,-8419.80933724,0.00017477,2]
[314888479,1708621837688,-281.28625655,0.00017655,2]
[314888481,1708621837697,-703.9086041,0.00017656,2]
[314888483,1708621837706,-1144.4820871,0.00017657,2]
[314888485,1708621837721,-775.68953518,0.00017657,2]
[314888488,1708621837733,-2562.10221082,0.00017657,2]
[314888539,1708621843240,-342.39592955,0.00017657,2]
[314888541,1708621843250,-118.70768736,0.00017661,2]
[314888595,1708621845885,-38.1865267,0.00017661,2]
[314888597,1708621845896,-300.0,0.00017745,2]
[314888598,1708621845905,-217.779847,0.00017761,2]
[314888599,1708621845916,-197.02351811,0.00017865,2]
[314888600,1708621845926,-249.5741545,0.000189,2]
[314888602,1708622315946,2088.46050508,0.00021088,14]
[314888624,1708623026606,2039.0,0.00015,2]
[314888657,1708623031918,-281.28625655,0.00017895,2]
[314888658,1708623031928,-300.0,0.00017896,2]
[314888659,1708623031938,-4824.66976265,0.00017896,2]
[314888660,1708623031948,-2402.29833456,0.00017897,2]
[314888662,1708623031961,-15092.72685514,0.00017897,2]
[314888664,1708623031971,-925.81939302,0.00018,2]
[314888666,1708623031981,-182.12211887,0.00018116,2]
[314888668,1708623031990,-482.59612591,0.000189,2]
[314888671,1708623031999,-619.14461729,0.00018973,2]
[314888673,1708623032009,-639.82865704,0.00019074,2]
[314888675,1708623032018,-774.83537779,0.00019078,2]
[314888676,1708623032027,-457.5,0.00019168,3]
[314888679,1708623032037,-228.75,0.00019168,3]
[314888681,1708623032046,-686.3,0.00019168,3]
[314888683,1708623032055,-1589.67671769,0.00019176,2]
[314888685,1708623032065,-797.13258434,0.00019176,2]
[314888687,1708623032074,-524.68041869,0.00019177,2]
[314888689,1708623032084,-638.31525657,0.00019178,2]
[314888691,1708623032093,-500.0,0.00019178,2]
[314888693,1708623032103,-623.54,0.00019178,2]
[314888694,1708623032112,-500.0,0.00019178,2]
[314888697,1708623032122,-500.0,0.00019178,2]
[314888698,1708623032135,-500.0,0.00019178,2]
[314888701,1708623032144,-500.0,0.00019178,2]
[314888703,1708623032154,-500.0,0.00019178,2]
[314888705,1708623032163,-500.0,0.00019178,2]
[314888706,1708623032172,-500.0,0.00019178,2]
[314888708,1708623032181,-500.0,0.00019178,2]
[314888710,1708623032190,-500.0,0.00019178,2]
[314888712,1708623032199,-832.14,0.00019178,2]
[314888714,1708623032210,-500.0,0.00019178,2]
[314888715,1708623032220,-500.0,0.00019178,2]
[314888716,1708623032228,-500.0,0.00019178,2]
[314888717,1708623032237,-500.0,0.00019178,2]
[314888718,1708623032246,-500.0,0.00019178,2]
[314888719,1708623032255,-500.0,0.00019178,2]
[314888720,1708623032264,-500.0,0.00019178,2]
[314888721,1708623032273,-500.0,0.00019178,2]
[314888722,1708623032282,-258.11466525,0.00019178,2]
[314888723,1708623032292,-500.0,0.00019178,2]
[314888724,1708623032300,-500.0,0.00019178,2]
[314888725,1708623032309,-1591.42,0.00019178,2]
[314888726,1708623032319,-867.54,0.00019178,2]
[314888727,1708623032328,-500.0,0.00019178,2]
[314888728,1708623032338,-500.0,0.00019178,2]
[314888729,1708623032347,-500.0,0.00019178,2]
[314888730,1708623032356,-232.63178787,0.00019178,2]
[314888731,1708623032365,-500.0,0.00019178,2]
[314888732,1708623032376,-500.0,0.00019178,2]
[314888733,1708623032387,-500.0,0.00019178,2]
[314888734,1708623032396,-500.0,0.00019178,2]
[314888735,1708623032407,-246.076407,0.00019178,2]
[314888736,1708623032416,-500.0,0.00019178,2]
[314888737,1708623032425,-500.0,0.00019178,2]
[314888738,1708623032434,-500.0,0.00019178,2]
[314888739,1708623032444,-2949.74,0.00019178,2]
[314888740,1708623032453,-1297.38,0.00019178,2]
[314888741,1708623032462,-500.0,0.00019178,2]
[314888742,1708623032471,-500.0,0.00019178,2]
[314888743,1708623032480,-220.17388687,0.00019178,2]
[314888744,1708623032490,-2232.84,0.00019178,2]
[314888745,1708623032500,-500.0,0.00019178,2]
[314888746,1708623032509,-2388.96,0.00019178,2]
[314888747,1708623032520,-500.0,0.00019178,2]
[314888748,1708623032530,-500.0,0.00019178,2]
[314888749,1708623032540,-500.0,0.00019178,2]
[314888750,1708623032549,-500.0,0.00019178,2]
[314888751,1708623032558,-500.0,0.00019178,2]
[314888752,1708623032568,-500.0,0.00019178,2]
[314888753,1708623032578,-600.0,0.00019178,2]
[314888754,1708623032588,-1162.96,0.00019178,2]
[314888755,1708623032597,-408.99080361,0.00019178,2]
[314888756,1708623032606,-500.0,0.00019178,2]
[314888757,1708623032615,-500.0,0.00019178,2]
[314888758,1708623032624,-500.0,0.00019178,2]
[314888759,1708623032635,-583.63868369,0.00019178,2]
[314888760,1708623032644,-500.0,0.00019178,2]
[314888761,1708623032653,-655.16,0.00019178,2]
[314888762,1708623032662,-500.0,0.00019178,2]
[314888763,1708623032674,-500.0,0.00019178,2]
[314888764,1708623032683,-711.49,0.00019178,2]
[314888765,1708623032693,-500.0,0.00019178,2]
[314888766,1708623032702,-500.0,0.00019178,2]
[314888767,1708623032712,-500.0,0.00019178,2]
[314888768,1708623032721,-169.36127377,0.00019178,2]
[314888769,1708623032730,-500.0,0.00019178,2]
[314888770,1708623032739,-380.513154,0.00019178,2]
[314888771,1708623032752,-674.85999156,0.00019178,2]
[314889044,1708623042964,-89.95685444,0.00019178,2]
[314889046,1708623042975,-222.31255549,0.00019178,2]
[314889049,1708623042988,-277.68744451,0.00019178,2]
[314889051,1708623042998,-432.991967,0.00019178,2]
[314889053,1708623043008,-432.991967,0.00019178,2]
[314889055,1708623043018,-22.27862149,0.00019178,2]
[314889321,1708623045927,-599.14949005,0.00019177,2]
[314889330,1708623046000,-257.30468228,0.00019177,2]
[314891387,1708623067647,2002.0,0.00016,2]
[314891499,1708624232135,-281.28625655,0.0001791,2]
[314891502,1708624232145,-188.451815,0.00017911,2]
[314891506,1708624232154,-183.11540469,0.00017986,2]
[314891509,1708624232167,-1493.83200131,0.00017986,2]
[314891513,1708624232191,-2553.88734892,0.00017986,2]
[314891569,1708624239013,-3618.34274928,0.00017986,2]
[314891571,1708624239023,-1183.9856604,0.00018009,2]
[314891573,1708624239032,-2930.75984183,0.0001805,2]
[314891575,1708624239042,-688.38515689,0.000189,2]
[314891577,1708624239051,-657.89279756,0.00019078,2]
[314891579,1708624239060,-161.30669832,0.00019078,2]
[314891581,1708624239069,-234.2047,0.00019082,2]
[314891583,1708624239078,-657.89279753,0.00019147,2]
[314891584,1708624239087,-228.75,0.00019168,3]
[314891586,1708624239096,-686.25,0.00019168,3]
[314891588,1708624239105,-925.81939302,0.00019176,2]
[314891590,1708624239116,-2023.85431826,0.00019177,2]
[314891592,1708624239124,-831.4,0.00019178,2]
[314891594,1708624239135,-500.0,0.00019178,2]
[314891596,1708624239144,-500.0,0.00019178,2]
[314891598,1708624239153,-495.3757702,0.00019178,2]
[314891600,1708624239162,-500.0,0.00019178,2]
[314891602,1708624239171,-500.0,0.00019178,2]
[314891604,1708624239180,-500.0,0.00019178,2]
[314891606,1708624239189,-151.0,0.00019178,2]
[314891607,1708624239198,-151.0,0.00019178,2]
[314891609,1708624239209,-151.0,0.00019178,2]
[314891611,1708624239218,-191.008126,0.00019178,2]
[314891613,1708624239227,-681.84,0.00019178,2]
[314891615,1708624239236,-500.0,0.00019178,2]
[314891617,1708624239245,-500.0,0.00019178,2]
[314891619,1708624239255,-500.0,0.00019178,2]
[314891621,1708624239264,-500.0,0.00019178,2]
[314891623,1708624239274,-500.0,0.00019178,2]
[314891624,1708624239283,-423.4232667,0.00019178,2]
[314891626,1708624239292,-500.0,0.00019178,2]
[314891628,1708624239301,-500.0,0.00019178,2]
[314891630,1708624239310,-500.0,0.00019178,2]
[314891631,1708624239319,-500.0,0.00019178,2]
[314891633,1708624239328,-1097.6,0.00019178,2]
[314891634,1708624239337,-416.709222,0.00019178,2]
[314891635,1708624239347,-416.709222,0.00019178,2]
[314891636,1708624239356,-416.709222,0.00019178,2]
[314891637,1708624239365,-416.709222,0.00019178,2]
[314891638,1708624239375,-416.709222,0.00019178,2]
[314891639,1708624239384,-416.709222,0.00019178,2]
[314891640,1708624239393,-416.709222,0.00019178,2]
[314891641,1708624239402,-416.709222,0.00019178,2]
[314891642,1708624239412,-416.709222,0.00019178,2]
[314891643,1708624239421,-416.709222,0.00019178,2]
[314891644,1708624239430,-416.709222,0.00019178,2]
[314891645,1708624239439,-416.709222,0.00019178,2]
[314891646,1708624239449,-416.709222,0.00019178,2]
[314891648,1708624239458,-416.709222,0.00019178,2]
[314891649,1708624239469,-416.709222,0.00019178,2]
[314891650,1708624239482,-416.709222,0.00019178,2]
[314891651,1708624239491,-416.709222,0.00019178,2]
[314891652,1708624239501,-500.0,0.00019178,2]
[314891653,1708624239510,-416.709222,0.00019178,2]
[314891654,1708624239521,-416.709222,0.00019178,2]
[314891655,1708624239530,-416.709226,0.00019178,2]
[314891656,1708624239540,-442.12465368,0.00019178,2]
[314891657,1708624239549,-500.0,0.00019178,2]
[314891658,1708624239559,-2861.4,0.00019178,2]
[314891659,1708624239569,-500.0,0.00019178,2]
[314891661,1708624239578,-500.0,0.00019178,2]
[314891663,1708624239587,-500.0,0.00019178,2]
[314891664,1708624239595,-1243.33,0.00019178,2]
[314891665,1708624239605,-500.0,0.00019178,2]
[314891666,1708624239615,-229.23019617,0.00019178,2]
[314891667,1708624239623,-500.0,0.00019178,2]
[314891668,1708624239633,-2139.8,0.00019178,2]
[314891669,1708624239642,-151.0,0.00019178,2]
[314891670,1708624239651,-151.0,0.00019178,2]
[314891671,1708624239661,-151.0,0.00019178,2]
[314891672,1708624239670,-151.0,0.00019178,2]
[314891673,1708624239679,-151.0,0.00019178,2]
[314891674,1708624239688,-500.0,0.00019178,2]
[314891675,1708624239697,-233.143302,0.00019178,2]
[314891676,1708624239706,-500.0,0.00019178,2]
[314891677,1708624239715,-151.0,0.00019178,2]
[314891678,1708624239724,-151.0,0.00019178,2]
[314891679,1708624239733,-151.0,0.00019178,2]
[314891680,1708624239743,-151.0,0.00019178,2]
[314891681,1708624239752,-151.0,0.00019178,2]
[314891682,1708624239761,-151.0,0.00019178,2]
[314891683,1708624239770,-151.0,0.00019178,2]
[314891684,1708624239779,-151.0,0.00019178,2]
[314891685,1708624239789,-151.0,0.00019178,2]
[314891686,1708624239799,-151.0,0.00019178,2]
[314891687,1708624239808,-151.0,0.00019178,2]
[314891688,1708624239818,-297.16635,0.00019178,2]
[314891689,1708624239827,-2289.42,0.00019178,2]
[314891690,1708624239837,-592.79,0.00019178,2]
[314891691,1708624239847,-500.0,0.00019178,2]
[314891692,1708624239857,-500.0,0.00019178,2]
[314891693,1708624239867,-500.0,0.00019178,2]
[314891694,1708624239876,-500.0,0.00019178,2]
[314891695,1708624239885,-676.24,0.00019178,2]
[314891696,1708624239894,-500.0,0.00019178,2]